[Event "Late-Titled-Tuesday-Blitz-January-30-2024"]
[Site "Chess.com"]
[Date "2024.01.30"]
[Round "5"]
[White "Ajedrecista3000"]
[Black "jup1978"]
[Result "1-0"]
[WhiteElo "2594"]
[BlackElo "2428"]
[TimeControl "180+1"]
[EndTime "14:56:48 PST"]
[Termination "Ajedrecista3000 won by resignation"]

1. Nf3 {[%clk 0:03:00.9]} 1... d5 {[%clk 0:02:55.5]} 2. e3 {[%clk 0:03:00]} 2...
Nf6 {[%clk 0:02:51.3]} 3. c4 {[%clk 0:02:59.2]} 3... c6 {[%clk 0:02:47.8]} 4.
Nc3 {[%clk 0:02:58.8]} 4... a6 {[%clk 0:02:46.6]} 5. d4 {[%clk 0:02:49.6]} 5...
Bf5 {[%clk 0:02:44.6]} 6. cxd5 {[%clk 0:02:43.1]} 6... cxd5 {[%clk 0:02:45.5]}
7. Ne5 {[%clk 0:02:43.8]} 7... Nbd7 {[%clk 0:02:20.3]} 8. Bd2 {[%clk 0:02:42.4]}
8... Nxe5 {[%clk 0:02:14.1]} 9. dxe5 {[%clk 0:02:43.3]} 9... Ne4 {[%clk
0:02:13.9]} 10. Nxe4 {[%clk 0:01:50.7]} 10... Bxe4 {[%clk 0:02:14.8]} 11. Rc1
{[%clk 0:01:49.4]} 11... e6 {[%clk 0:02:06.9]} 12. Qb3 {[%clk 0:01:31.1]} 12...
Qd7 {[%clk 0:02:04.3]} 13. f3 {[%clk 0:01:24.5]} 13... Bg6 {[%clk 0:02:03.4]}
14. Bb4 {[%clk 0:01:09.1]} 14... Bxb4+ {[%clk 0:01:55.9]} 15. Qxb4 {[%clk
0:01:10]} 15... Rc8 {[%clk 0:01:56.2]} 16. Rxc8+ {[%clk 0:00:56.4]} 16... Qxc8
{[%clk 0:01:57.1]} 17. Qc3 {[%clk 0:00:46.3]} 17... Kd7 {[%clk 0:01:40.1]} 18.
Kd2 {[%clk 0:00:46.1]} 18... Qxc3+ {[%clk 0:01:38.8]} 19. bxc3 {[%clk
0:00:45.2]} 19... f6 {[%clk 0:01:35.7]} 20. exf6 {[%clk 0:00:44.6]} 20... gxf6
{[%clk 0:01:36.6]} 21. h4 {[%clk 0:00:44.9]} 21... h6 {[%clk 0:01:32.1]} 22. Be2
{[%clk 0:00:44.5]} 22... Rc8 {[%clk 0:01:30.1]} 23. Rh3 {[%clk 0:00:43.1]} 23...
Rg8 {[%clk 0:01:25.7]} 24. Rh1 {[%clk 0:00:42.5]} 24... Bf7 {[%clk 0:01:24.5]}
25. Rb1 {[%clk 0:00:39.4]} 25... Kc7 {[%clk 0:01:22.4]} 26. g4 {[%clk
0:00:37.9]} 26... h5 {[%clk 0:01:20.2]} 27. Rb4 {[%clk 0:00:38]} 27... e5 {[%clk
0:01:04.5]} 28. Rb1 {[%clk 0:00:30.9]} 28... Rh8 {[%clk 0:00:57]} 29. g5 {[%clk
0:00:29.1]} 29... fxg5 {[%clk 0:00:55.8]} 30. hxg5 {[%clk 0:00:30]} 30... h4
{[%clk 0:00:55.9]} 31. f4 {[%clk 0:00:25.8]} 31... exf4 {[%clk 0:00:52.8]} 32.
exf4 {[%clk 0:00:26.7]} 32... Bg6 {[%clk 0:00:53.2]} 33. Bd3 {[%clk 0:00:23.2]}
33... Bxd3 {[%clk 0:00:48.1]} 34. Kxd3 {[%clk 0:00:24.1]} 34... Kd6 {[%clk
0:00:48.4]} 35. Ke3 {[%clk 0:00:17.7]} 35... h3 {[%clk 0:00:45]} 36. Kf3 {[%clk
0:00:16.6]} 36... h2 {[%clk 0:00:44.4]} 37. Rh1 {[%clk 0:00:13.8]} 37... Ke6
{[%clk 0:00:40.1]} 38. Kg4 {[%clk 0:00:13.5]} 38... b5 {[%clk 0:00:35.3]} 39.
f5+ {[%clk 0:00:13.6]} 39... Ke5 {[%clk 0:00:35.9]} 40. f6 {[%clk 0:00:09.3]}
40... Rc8 {[%clk 0:00:34.5]} 41. Rxh2 {[%clk 0:00:06.8]} 41... Rc4+ {[%clk
0:00:30.5]} 42. Kh5 {[%clk 0:00:07.2]} 42... Rxc3 {[%clk 0:00:30.7]} 43. Re2+
{[%clk 0:00:07.4]} 43... Kd6 {[%clk 0:00:29.1]} 44. f7 {[%clk 0:00:07.2]} 44...
Rc8 {[%clk 0:00:28.6]} 45. g6 {[%clk 0:00:07.2]} 1-0

[Event "Late-Titled-Tuesday-Blitz-January-30-2024"]
[Site "Chess.com"]
[Date "2024.01.30"]
[Round "5"]
[White "Orest_Vovk"]
[Black "Hirna2005"]
[Result "1-0"]
[WhiteElo "2504"]
[BlackElo "2276"]
[TimeControl "180+1"]
[EndTime "14:56:48 PST"]
[Termination "Orest_Vovk won by resignation"]

1. h4 {[%clk 0:02:32.7]} 1... d6 {[%clk 0:02:57.3]} 2. h5 {[%clk 0:02:30.7]}
2... e5 {[%clk 0:02:54.7]} 3. d4 {[%clk 0:02:29.9]} 3... Nc6 {[%clk 0:02:53.8]}
4. dxe5 {[%clk 0:02:26.1]} 4... Nxe5 {[%clk 0:02:53.1]} 5. Nf3 {[%clk 0:02:26]}
5... Nxf3+ {[%clk 0:02:50.4]} 6. gxf3 {[%clk 0:02:24.3]} 6... Be6 {[%clk
0:02:47.9]} 7. Nc3 {[%clk 0:02:24]} 7... h6 {[%clk 0:02:47]} 8. Qd4 {[%clk
0:02:23.1]} 8... Nf6 {[%clk 0:02:44.7]} 9. Bf4 {[%clk 0:02:20.3]} 9... a6 {[%clk
0:02:30.6]} 10. e4 {[%clk 0:02:19.7]} 10... Nd7 {[%clk 0:02:26.6]} 11. O-O-O
{[%clk 0:02:18.5]} 11... Qf6 {[%clk 0:02:25.7]} 12. Qd2 {[%clk 0:02:08]} 12...
O-O-O {[%clk 0:02:24.3]} 13. Be2 {[%clk 0:01:55.6]} 13... Kb8 {[%clk 0:02:23.8]}
14. Be3 {[%clk 0:01:52.3]} 14... Ne5 {[%clk 0:01:51.9]} 15. f4 {[%clk
0:01:42.2]} 15... Nc6 {[%clk 0:01:51.4]} 16. Nd5 {[%clk 0:01:36.5]} 16... Bxd5
{[%clk 0:01:48.5]} 17. exd5 {[%clk 0:01:34.4]} 17... Na7 {[%clk 0:01:41.4]} 18.
Bd4 {[%clk 0:01:24.7]} 18... Qe7 {[%clk 0:01:34.9]} 19. Rde1 {[%clk 0:01:11.7]}
19... Qd7 {[%clk 0:01:33.5]} 20. c4 {[%clk 0:01:10.2]} 20... Rg8 {[%clk
0:01:20.9]} 21. Bd3 {[%clk 0:01:07.6]} 21... Be7 {[%clk 0:01:16.6]} 22. Bxa7+
{[%clk 0:01:03.3]} 22... Kxa7 {[%clk 0:01:14.5]} 23. Qe3+ {[%clk 0:01:03.3]}
23... Kb8 {[%clk 0:01:12.2]} 24. Qxe7 {[%clk 0:01:04.2]} 24... Qa4 {[%clk
0:01:12.3]} 25. Kb1 {[%clk 0:00:55.3]} 25... b5 {[%clk 0:01:07.2]} 26. Qe4
{[%clk 0:00:47]} 26... Rge8 {[%clk 0:01:04.2]} 27. Qd4 {[%clk 0:00:44.2]} 27...
Qb4 {[%clk 0:00:54.4]} 28. Qc3 {[%clk 0:00:37.6]} 28... Qc5 {[%clk 0:00:43]} 29.
cxb5 {[%clk 0:00:36.7]} 29... Qxd5 {[%clk 0:00:43.1]} 30. bxa6 {[%clk
0:00:34.2]} 30... c5 {[%clk 0:00:32.7]} 31. Qb3+ {[%clk 0:00:20.8]} 31... Qxb3
{[%clk 0:00:30.6]} 32. axb3 {[%clk 0:00:21.7]} 32... d5 {[%clk 0:00:27.8]} 33.
Rxe8 {[%clk 0:00:20.5]} 33... Rxe8 {[%clk 0:00:27.6]} 34. Kc2 {[%clk 0:00:21.4]}
34... Ka7 {[%clk 0:00:26]} 35. Kd2 {[%clk 0:00:21.1]} 35... Kb6 {[%clk 0:00:26]}
36. Re1 {[%clk 0:00:20]} 36... Rxe1 {[%clk 0:00:20.3]} 37. Kxe1 {[%clk 0:00:20]}
37... f6 {[%clk 0:00:19.9]} 38. Kd2 {[%clk 0:00:19.5]} 38... Ka7 {[%clk
0:00:18.9]} 39. Kc3 {[%clk 0:00:18.7]} 39... Kb6 {[%clk 0:00:19.1]} 40. Kd2
{[%clk 0:00:17.7]} 40... Ka7 {[%clk 0:00:19.1]} 41. Ke3 {[%clk 0:00:17.9]} 41...
Kb6 {[%clk 0:00:19.2]} 42. Kf3 {[%clk 0:00:17.8]} 42... Ka7 {[%clk 0:00:14.1]}
43. Kg4 {[%clk 0:00:17.5]} 1-0

[Event "Late-Titled-Tuesday-Blitz-January-30-2024"]
[Site "Chess.com"]
[Date "2024.01.30"]
[Round "5"]
[White "koncheto"]
[Black "RebecaJimnz"]
[Result "1-0"]
[WhiteElo "2508"]
[BlackElo "2302"]
[TimeControl "180+1"]
[EndTime "14:56:50 PST"]
[Termination "koncheto won on time"]

1. e4 {[%clk 0:03:00.9]} 1... c5 {[%clk 0:03:00.2]} 2. Nf3 {[%clk 0:03:00.9]}
2... Nc6 {[%clk 0:03:00.7]} 3. d4 {[%clk 0:03:01.5]} 3... cxd4 {[%clk
0:03:01.6]} 4. Nxd4 {[%clk 0:03:02.4]} 4... g6 {[%clk 0:03:01.8]} 5. c4 {[%clk
0:03:02.8]} 5... Bg7 {[%clk 0:03:02.5]} 6. Be3 {[%clk 0:03:03.4]} 6... Nf6
{[%clk 0:03:03.3]} 7. Nc3 {[%clk 0:03:04]} 7... Ng4 {[%clk 0:03:04]} 8. Qxg4
{[%clk 0:03:03.9]} 8... Nxd4 {[%clk 0:03:04.7]} 9. Qd1 {[%clk 0:03:04.6]} 9...
Ne6 {[%clk 0:03:05.4]} 10. Rc1 {[%clk 0:03:04.1]} 10... Qa5 {[%clk 0:03:04.8]}
11. Be2 {[%clk 0:03:00.1]} 11... b6 {[%clk 0:03:05.2]} 12. O-O {[%clk
0:02:54.7]} 12... g5 {[%clk 0:02:59.7]} 13. Qd2 {[%clk 0:02:44.5]} 13... Be5
{[%clk 0:02:59.8]} 14. g3 {[%clk 0:02:36.5]} 14... f6 {[%clk 0:02:53.6]} 15. f4
{[%clk 0:02:20.2]} 15... gxf4 {[%clk 0:02:52.6]} 16. gxf4 {[%clk 0:02:21.1]}
16... Bd6 {[%clk 0:02:17.6]} 17. Nb5 {[%clk 0:01:34.7]} 17... Bc5 {[%clk
0:01:57.8]} 18. Qd3 {[%clk 0:01:09.3]} 18... Bb7 {[%clk 0:01:01.7]} 19. Bh5+
{[%clk 0:00:30.2]} 19... Kd8 {[%clk 0:00:18.1]} 20. Rfd1 {[%clk 0:00:24.6]}
20... d6 {[%clk 0:00:16.9]} 21. Bxc5 {[%clk 0:00:19.7]} 21... Nxc5 {[%clk
0:00:15.7]} 22. Qc3 {[%clk 0:00:05.4]} 22... Rg8+ {[%clk 0:00:15]} 23. Kf1
{[%clk 0:00:04]} 23... Nxe4 {[%clk 0:00:12.5]} 24. Qxa5 {[%clk 0:00:03.8]} 24...
bxa5 {[%clk 0:00:11.7]} 25. c5 {[%clk 0:00:04.7]} 25... Ba6 {[%clk 0:00:09.3]}
26. Be2 {[%clk 0:00:02.6]} 26... Rb8 {[%clk 0:00:04.9]} 27. a4 {[%clk
0:00:01.5]} 27... Ke8 {[%clk 0:00:01.8]} 28. Nc7+ {[%clk 0:00:01.9]} 28... Kf7
{[%clk 0:00:01.5]} 29. Nxa6 {[%clk 0:00:02.2]} 29... Nxc5 {[%clk 0:00:01.2]} 30.
Nxc5 {[%clk 0:00:02.3]} 30... dxc5 {[%clk 0:00:01.1]} 31. Rxc5 {[%clk
0:00:03.2]} 31... Rxb2 {[%clk 0:00:01.2]} 32. Rc7 {[%clk 0:00:03.2]} 1-0

[Event "Late-Titled-Tuesday-Blitz-January-30-2024"]
[Site "Chess.com"]
[Date "2024.01.30"]
[Round "5"]
[White "venturov"]
[Black "Arlo2024"]
[Result "0-1"]
[WhiteElo "2449"]
[BlackElo "2280"]
[TimeControl "180+1"]
[EndTime "14:56:50 PST"]
[Termination "Arlo2024 won by checkmate"]

1. Nf3 {[%clk 0:03:00.9]} 1... Nf6 {[%clk 0:02:59.4]} 2. g3 {[%clk 0:03:00.4]}
2... c5 {[%clk 0:02:59.3]} 3. Bg2 {[%clk 0:03:01.3]} 3... Nc6 {[%clk 0:02:59.7]}
4. O-O {[%clk 0:03:01.5]} 4... g6 {[%clk 0:03:00.2]} 5. c4 {[%clk 0:02:55.6]}
5... Bg7 {[%clk 0:03:00.6]} 6. Nc3 {[%clk 0:02:55.5]} 6... O-O {[%clk 0:03:01]}
7. d4 {[%clk 0:02:55]} 7... Nxd4 {[%clk 0:03:01.7]} 8. Nxd4 {[%clk 0:02:55.2]}
8... cxd4 {[%clk 0:03:02.6]} 9. Qxd4 {[%clk 0:02:55.8]} 9... d6 {[%clk
0:03:03.3]} 10. Qd2 {[%clk 0:02:51]} 10... Be6 {[%clk 0:03:02.5]} 11. b3 {[%clk
0:02:51.3]} 11... d5 {[%clk 0:03:02.6]} 12. cxd5 {[%clk 0:02:48.4]} 12... Nxd5
{[%clk 0:03:02.4]} 13. Bb2 {[%clk 0:02:43.6]} 13... Nxc3 {[%clk 0:02:56.8]} 14.
Bxc3 {[%clk 0:02:40.4]} 14... Qxd2 {[%clk 0:02:54.8]} 15. Bxd2 {[%clk
0:02:41.3]} 15... Bxa1 {[%clk 0:02:51.5]} 16. Rxa1 {[%clk 0:02:42.2]} 16... Rfd8
{[%clk 0:02:46.4]} 17. Be3 {[%clk 0:02:40.2]} 17... Bd5 {[%clk 0:02:43.5]} 18.
Bxd5 {[%clk 0:02:30.9]} 18... Rxd5 {[%clk 0:02:43.2]} 19. Rc1 {[%clk 0:02:31.8]}
19... Rd7 {[%clk 0:02:31.7]} 20. Rc4 {[%clk 0:02:31.8]} 20... b6 {[%clk
0:02:26.3]} 21. Kg2 {[%clk 0:02:31.9]} 21... Rb8 {[%clk 0:02:15.5]} 22. h4
{[%clk 0:02:31.3]} 22... f6 {[%clk 0:02:15.1]} 23. Kf3 {[%clk 0:02:29.3]} 23...
Kf7 {[%clk 0:02:14.7]} 24. Ra4 {[%clk 0:02:26.5]} 24... Rbb7 {[%clk 0:02:14.2]}
25. Rc4 {[%clk 0:02:24.1]} 25... Rbc7 {[%clk 0:02:14.6]} 26. Ra4 {[%clk
0:02:23.7]} 26... e5 {[%clk 0:02:13.9]} 27. Ke4 {[%clk 0:02:19.5]} 27... Ke6
{[%clk 0:02:12.3]} 28. Kf3 {[%clk 0:02:12.7]} 28... f5 {[%clk 0:02:12.1]} 29.
Bh6 {[%clk 0:02:02.3]} 29... Rc3+ {[%clk 0:02:03.7]} 30. Be3 {[%clk 0:01:36.2]}
30... Rc2 {[%clk 0:01:45.7]} 31. Bh6 {[%clk 0:01:25.9]} 31... Rc3+ {[%clk
0:01:43.5]} 32. Be3 {[%clk 0:01:25.7]} 32... h6 {[%clk 0:01:43]} 33. Kg2 {[%clk
0:01:17.8]} 33... Rc2 {[%clk 0:01:39.4]} 34. Kf3 {[%clk 0:01:12.1]} 34... e4+
{[%clk 0:01:31.7]} 35. Kg2 {[%clk 0:01:12.6]} 35... Rxe2 {[%clk 0:01:29.3]} 36.
Bxh6 {[%clk 0:01:12.7]} 36... Rc7 {[%clk 0:01:22.3]} 37. a3 {[%clk 0:00:36.4]}
37... Rcc2 {[%clk 0:01:19.4]} 38. Rxa7 {[%clk 0:00:20.7]} 38... Rxf2+ {[%clk
0:01:17.5]} 39. Kg1 {[%clk 0:00:21.4]} 39... Rg2+ {[%clk 0:01:12.3]} 40. Kf1
{[%clk 0:00:22]} 40... Rcf2+ {[%clk 0:01:01]} 41. Ke1 {[%clk 0:00:21.8]} 41...
Re2+ {[%clk 0:01:01]} 42. Kf1 {[%clk 0:00:22]} 42... e3 {[%clk 0:00:59.8]} 43.
Bxe3 {[%clk 0:00:18.7]} 43... Rb2 {[%clk 0:00:53.7]} 44. Bxb6 {[%clk 0:00:13.9]}
44... Rxg3 {[%clk 0:00:50.6]} 45. Bf2 {[%clk 0:00:12.8]} 45... Rf3 {[%clk
0:00:49.2]} 46. Ra6+ {[%clk 0:00:13.1]} 46... Kf7 {[%clk 0:00:46.4]} 47. Ra7+
{[%clk 0:00:09.4]} 47... Kg8 {[%clk 0:00:46]} 48. b4 {[%clk 0:00:09]} 48...
Rfxf2+ {[%clk 0:00:45.4]} 49. Ke1 {[%clk 0:00:09.4]} 49... Rh2 {[%clk
0:00:44.2]} 50. Ra8+ {[%clk 0:00:05.9]} 50... Kg7 {[%clk 0:00:43.4]} 51. Ra7+
{[%clk 0:00:06.6]} 51... Kh6 {[%clk 0:00:43.5]} 52. Rd7 {[%clk 0:00:05.9]} 52...
Rh1# {[%clk 0:00:43.2]} 0-1

[Event "Late-Titled-Tuesday-Blitz-January-30-2024"]
[Site "Chess.com"]
[Date "2024.01.30"]
[Round "5"]
[White "ozates"]
[Black "WPWPWP-2015"]
[Result "1-0"]
[WhiteElo "2636"]
[BlackElo "2481"]
[TimeControl "180+1"]
[EndTime "14:56:53 PST"]
[Termination "ozates won by resignation"]

1. e4 {[%clk 0:02:56.5]} 1... e5 {[%clk 0:02:59.5]} 2. Nf3 {[%clk 0:02:56.4]}
2... Nf6 {[%clk 0:02:59.8]} 3. d4 {[%clk 0:02:53]} 3... Nxe4 {[%clk 0:02:59.4]}
4. Bd3 {[%clk 0:02:53.2]} 4... d5 {[%clk 0:02:59.8]} 5. Nxe5 {[%clk 0:02:52.9]}
5... Nd7 {[%clk 0:02:59.8]} 6. Nc3 {[%clk 0:02:53.6]} 6... Nxc3 {[%clk
0:02:59.3]} 7. bxc3 {[%clk 0:02:53.9]} 7... Nxe5 {[%clk 0:02:59.7]} 8. dxe5
{[%clk 0:02:54.8]} 8... Be7 {[%clk 0:02:56.2]} 9. Qh5 {[%clk 0:02:39.9]} 9... g6
{[%clk 0:02:55.6]} 10. Qh6 {[%clk 0:02:39.1]} 10... Bf8 {[%clk 0:02:55.6]} 11.
Qe3 {[%clk 0:02:38.5]} 11... Bg7 {[%clk 0:02:53.3]} 12. Ba3 {[%clk 0:02:34.2]}
12... Bf8 {[%clk 0:02:49.2]} 13. Bxf8 {[%clk 0:02:22]} 13... Kxf8 {[%clk
0:02:49.3]} 14. Qh6+ {[%clk 0:02:21.5]} 14... Kg8 {[%clk 0:02:49.7]} 15. O-O
{[%clk 0:02:21.1]} 15... Qf8 {[%clk 0:02:45.5]} 16. Qe3 {[%clk 0:02:20.7]} 16...
Be6 {[%clk 0:02:38.7]} 17. f4 {[%clk 0:02:20.9]} 17... b6 {[%clk 0:02:31.5]} 18.
Kh1 {[%clk 0:02:19.3]} 18... f5 {[%clk 0:02:23.7]} 19. exf6 {[%clk 0:02:15.2]}
19... Qxf6 {[%clk 0:02:23.1]} 20. f5 {[%clk 0:02:13.8]} 20... Bxf5 {[%clk
0:02:16.5]} 21. Bxf5 {[%clk 0:02:13.8]} 21... gxf5 {[%clk 0:02:16.4]} 22. Rae1
{[%clk 0:02:13.7]} 22... Rf8 {[%clk 0:01:53.5]} 23. Qg3+ {[%clk 0:01:43.9]}
23... Qg7 {[%clk 0:01:52.8]} 24. Qf3 {[%clk 0:01:44]} 24... c6 {[%clk
0:01:33.6]} 25. Re6 {[%clk 0:01:43.4]} 25... Rf6 {[%clk 0:01:21]} 26. Rxc6
{[%clk 0:01:31.4]} 26... Rxc6 {[%clk 0:01:00.6]} 27. Qxd5+ {[%clk 0:01:31]}
27... Qf7 {[%clk 0:01:01]} 28. Qxc6 {[%clk 0:01:31.4]} 28... Kg7 {[%clk
0:00:59.5]} 29. Rf3 {[%clk 0:01:18.5]} 29... Re8 {[%clk 0:00:52.7]} 30. h3
{[%clk 0:01:14.8]} 30... Re6 {[%clk 0:00:50.1]} 31. Rg3+ {[%clk 0:01:10.6]}
31... Rg6 {[%clk 0:00:48.8]} 32. Qf3 {[%clk 0:01:08.2]} 32... f4 {[%clk
0:00:40.9]} 33. Rg4 {[%clk 0:01:05.3]} 33... Rxg4 {[%clk 0:00:29.4]} 34. Qxg4+
{[%clk 0:01:06.2]} 34... Kf8 {[%clk 0:00:27.8]} 35. a4 {[%clk 0:01:06.3]} 35...
h5 {[%clk 0:00:27]} 36. Qg5 {[%clk 0:01:05]} 36... Ke8 {[%clk 0:00:23.7]} 37.
Qe5+ {[%clk 0:01:00.2]} 37... Kd7 {[%clk 0:00:22.6]} 38. Kg1 {[%clk 0:00:59.1]}
38... Kc6 {[%clk 0:00:12.1]} 39. Kf2 {[%clk 0:00:56.9]} 39... Qc4 {[%clk
0:00:11.3]} 40. Qd4 {[%clk 0:00:53.9]} 40... Qf7 {[%clk 0:00:03.8]} 41. Kf3
{[%clk 0:00:53.1]} 41... Qe6 {[%clk 0:00:01.8]} 42. Qe4+ {[%clk 0:00:53]} 42...
Kd6 {[%clk 0:00:01.4]} 43. Qxe6+ {[%clk 0:00:49.7]} 43... Kxe6 {[%clk
0:00:01.6]} 44. Kxf4 {[%clk 0:00:50.6]} 44... Kd5 {[%clk 0:00:02.2]} 45. g4
{[%clk 0:00:50.5]} 45... hxg4 {[%clk 0:00:02.2]} 46. hxg4 {[%clk 0:00:51.4]}
46... Ke6 {[%clk 0:00:02.4]} 47. g5 {[%clk 0:00:49.5]} 47... a5 {[%clk
0:00:01.6]} 48. c4 {[%clk 0:00:48.8]} 48... Ke7 {[%clk 0:00:02.5]} 49. Ke5
{[%clk 0:00:48.5]} 49... Kf7 {[%clk 0:00:03.1]} 50. Kd6 {[%clk 0:00:48.9]} 50...
Kg6 {[%clk 0:00:04]} 51. Kc6 {[%clk 0:00:49.3]} 51... Kxg5 {[%clk 0:00:04.9]}
52. Kxb6 {[%clk 0:00:50.1]} 52... Kf5 {[%clk 0:00:05.8]} 53. c5 {[%clk 0:00:51]}
53... Ke6 {[%clk 0:00:06.7]} 54. c6 {[%clk 0:00:51.9]} 54... Kd6 {[%clk
0:00:07.6]} 55. c7 {[%clk 0:00:52.4]} 55... Kd7 {[%clk 0:00:07.9]} 56. Kb7
{[%clk 0:00:52.9]} 56... Kd6 {[%clk 0:00:08.5]} 57. c8=Q {[%clk 0:00:53.8]}
57... Kd5 {[%clk 0:00:09.1]} 58. Qc3 {[%clk 0:00:54.1]} 1-0

[Event "Late-Titled-Tuesday-Blitz-January-30-2024"]
[Site "Chess.com"]
[Date "2024.01.30"]
[Round "5"]
[White "mishanick"]
[Black "SchmakAttack"]
[Result "1-0"]
[WhiteElo "3130"]
[BlackElo "2745"]
[TimeControl "180+1"]
[EndTime "14:56:54 PST"]
[Termination "mishanick won on time"]

1. d4 {[%clk 0:03:00.9]} 1... Nf6 {[%clk 0:02:57.6]} 2. c4 {[%clk 0:03:01.6]}
2... g6 {[%clk 0:02:57.3]} 3. Nc3 {[%clk 0:03:02.1]} 3... Bg7 {[%clk 0:02:57.5]}
4. e4 {[%clk 0:03:02.4]} 4... d6 {[%clk 0:02:58]} 5. Bd3 {[%clk 0:03:01.5]} 5...
O-O {[%clk 0:02:55.7]} 6. Nge2 {[%clk 0:03:02.2]} 6... Nc6 {[%clk 0:02:55.5]} 7.
O-O {[%clk 0:03:01.5]} 7... Nd7 {[%clk 0:02:47.8]} 8. Bc2 {[%clk 0:02:59.2]}
8... e5 {[%clk 0:02:46.3]} 9. d5 {[%clk 0:02:59.6]} 9... Nd4 {[%clk 0:02:39.8]}
10. Nxd4 {[%clk 0:02:58.7]} 10... exd4 {[%clk 0:02:40.7]} 11. Ne2 {[%clk
0:02:59.4]} 11... Nc5 {[%clk 0:02:36.9]} 12. Nxd4 {[%clk 0:02:59.2]} 12... Re8
{[%clk 0:02:37.2]} 13. Re1 {[%clk 0:02:53.5]} 13... f5 {[%clk 0:02:31]} 14. f3
{[%clk 0:02:41.1]} 14... fxe4 {[%clk 0:02:26]} 15. fxe4 {[%clk 0:02:42]} 15...
Bg4 {[%clk 0:02:05.6]} 16. Qxg4 {[%clk 0:02:41]} 16... Bxd4+ {[%clk 0:02:05.6]}
17. Kh1 {[%clk 0:02:41.5]} 17... Qf6 {[%clk 0:01:59.4]} 18. Bg5 {[%clk
0:02:40.6]} 18... Qg7 {[%clk 0:01:37.5]} 19. Rab1 {[%clk 0:02:38.1]} 19... Bxb2
{[%clk 0:01:35.7]} 20. Qh4 {[%clk 0:02:36.9]} 20... Be5 {[%clk 0:01:17.4]} 21.
Rf1 {[%clk 0:02:36.6]} 21... Qd7 {[%clk 0:01:04.9]} 22. Bh6 {[%clk 0:02:34]}
22... Bg7 {[%clk 0:01:02.8]} 23. Be3 {[%clk 0:02:33.8]} 23... b6 {[%clk
0:00:57]} 24. Rf3 {[%clk 0:02:33.6]} 24... Qe7 {[%clk 0:00:52.6]} 25. Bg5 {[%clk
0:02:33]} 25... Qd7 {[%clk 0:00:49.4]} 26. Rbf1 {[%clk 0:02:31.9]} 26... Rf8
{[%clk 0:00:49.7]} 27. Be7 {[%clk 0:02:24.8]} 27... Rxf3 {[%clk 0:00:48.4]} 28.
gxf3 {[%clk 0:02:25.7]} 28... h6 {[%clk 0:00:39.2]} 29. Rg1 {[%clk 0:02:08]}
29... Re8 {[%clk 0:00:34.8]} 30. Bf6 {[%clk 0:01:55.7]} 30... g5 {[%clk
0:00:34.8]} 31. Bxg5 {[%clk 0:01:35.4]} 31... hxg5 {[%clk 0:00:35.7]} 32. Rxg5
{[%clk 0:01:33.9]} 32... Qf7 {[%clk 0:00:35.7]} 33. Qg4 {[%clk 0:01:29.9]} 33...
Nd7 {[%clk 0:00:28.1]} 34. f4 {[%clk 0:01:29.2]} 34... Nf6 {[%clk 0:00:23.7]}
35. Qg2 {[%clk 0:01:21.8]} 35... Nh7 {[%clk 0:00:16.7]} 36. Rf5 {[%clk
0:01:20.8]} 36... Qe7 {[%clk 0:00:15]} 37. e5 {[%clk 0:01:19.5]} 37... Nf8
{[%clk 0:00:14.4]} 38. e6 {[%clk 0:01:16.1]} 38... Qh4 {[%clk 0:00:14.4]} 39. h3
{[%clk 0:01:11.3]} 39... Re7 {[%clk 0:00:09.7]} 40. Rg5 {[%clk 0:01:10]} 40...
Nh7 {[%clk 0:00:09.6]} 41. Rg4 {[%clk 0:01:05.7]} 41... Qe1+ {[%clk 0:00:09.7]}
42. Kh2 {[%clk 0:01:06]} 42... Nf6 {[%clk 0:00:10.3]} 43. Rg6 {[%clk 0:01:04.5]}
43... Nh5 {[%clk 0:00:06.7]} 44. f5 {[%clk 0:00:32.7]} 44... Nf4 {[%clk
0:00:05.8]} 45. f6 {[%clk 0:00:33]} 45... Nxg2 {[%clk 0:00:04.9]} 46. fxe7
{[%clk 0:00:33.1]} 46... Qe5+ {[%clk 0:00:04.5]} 47. Rg3 {[%clk 0:00:33.7]} 1-0

[Event "Late-Titled-Tuesday-Blitz-January-30-2024"]
[Site "Chess.com"]
[Date "2024.01.30"]
[Round "5"]
[White "yujiarun18"]
[Black "IngOscarArdila"]
[Result "0-1"]
[WhiteElo "2085"]
[BlackElo "2317"]
[TimeControl "180+1"]
[EndTime "14:56:54 PST"]
[Termination "IngOscarArdila won by resignation"]

1. e4 {[%clk 0:03:00.9]} 1... e5 {[%clk 0:02:59.9]} 2. Nf3 {[%clk 0:03:00.4]}
2... Nf6 {[%clk 0:03:00.4]} 3. Nxe5 {[%clk 0:02:59.6]} 3... d6 {[%clk
0:03:00.5]} 4. Nf3 {[%clk 0:03:00.2]} 4... Nxe4 {[%clk 0:03:00.9]} 5. d4 {[%clk
0:03:00.2]} 5... Be7 {[%clk 0:03:00.6]} 6. Bd3 {[%clk 0:03:00.8]} 6... d5 {[%clk
0:03:01]} 7. O-O {[%clk 0:03:00]} 7... Nc6 {[%clk 0:03:01.1]} 8. Nc3 {[%clk
0:03:00]} 8... Nxc3 {[%clk 0:02:59.1]} 9. bxc3 {[%clk 0:02:59.8]} 9... O-O
{[%clk 0:02:59.1]} 10. c4 {[%clk 0:02:56.3]} 10... dxc4 {[%clk 0:02:58.3]} 11.
Bxc4 {[%clk 0:02:56.1]} 11... Bf6 {[%clk 0:02:58.6]} 12. c3 {[%clk 0:02:55.6]}
12... Bg4 {[%clk 0:02:51.8]} 13. Qd3 {[%clk 0:02:50.7]} 13... Qd7 {[%clk
0:02:49.6]} 14. h3 {[%clk 0:02:47.3]} 14... Bf5 {[%clk 0:02:48.1]} 15. Qd1
{[%clk 0:02:39]} 15... Rfe8 {[%clk 0:02:46.1]} 16. Be3 {[%clk 0:02:38.7]} 16...
Rad8 {[%clk 0:02:35.8]} 17. Bd3 {[%clk 0:02:37.8]} 17... h6 {[%clk 0:02:28.5]}
18. Qc2 {[%clk 0:02:35.2]} 18... Bxd3 {[%clk 0:02:26.9]} 19. Qxd3 {[%clk
0:02:35.4]} 19... Na5 {[%clk 0:02:14.7]} 20. Nd2 {[%clk 0:02:27.8]} 20... c5
{[%clk 0:02:03.2]} 21. Ne4 {[%clk 0:02:25.9]} 21... Be7 {[%clk 0:02:02.1]} 22.
Qc2 {[%clk 0:02:19.4]} 22... cxd4 {[%clk 0:01:58.7]} 23. Bxd4 {[%clk 0:02:19.2]}
23... Nc6 {[%clk 0:01:56.1]} 24. Be3 {[%clk 0:02:16.8]} 24... Qe6 {[%clk
0:01:44]} 25. Rfe1 {[%clk 0:02:11.8]} 25... Qc4 {[%clk 0:01:42.6]} 26. Ng3
{[%clk 0:02:07]} 26... Bf6 {[%clk 0:01:39.1]} 27. Bd2 {[%clk 0:02:00.4]} 27...
Nb4 {[%clk 0:01:26.7]} 28. Qb2 {[%clk 0:01:43.7]} 28... Rxe1+ {[%clk 0:01:15.5]}
29. Bxe1 {[%clk 0:01:42.1]} 29... Nd3 {[%clk 0:01:14.7]} 30. Qxb7 {[%clk
0:01:32.9]} 30... Nxe1 {[%clk 0:01:02]} 31. Rxe1 {[%clk 0:01:28.9]} 31... Qxc3
{[%clk 0:01:02.1]} 32. Rf1 {[%clk 0:01:24.2]} 32... Qa5 {[%clk 0:00:56.3]} 33.
Ne4 {[%clk 0:01:18.6]} 33... Be5 {[%clk 0:00:48.9]} 34. Kh1 {[%clk 0:01:05.4]}
34... Qxa2 {[%clk 0:00:45.1]} 35. f4 {[%clk 0:00:59.2]} 35... Qc4 {[%clk
0:00:32.5]} 36. Qb1 {[%clk 0:00:51.8]} 36... Bd4 {[%clk 0:00:26.7]} 37. Ng3
{[%clk 0:00:48.2]} 37... Bb6 {[%clk 0:00:15.4]} 38. Nf5 {[%clk 0:00:45.9]} 38...
Qc3 {[%clk 0:00:13.7]} 39. Qe4 {[%clk 0:00:42.3]} 39... Qd3 {[%clk 0:00:10.1]}
40. Qe5 {[%clk 0:00:36.3]} 40... Qxf1+ {[%clk 0:00:09.6]} 41. Kh2 {[%clk
0:00:35.6]} 41... f6 {[%clk 0:00:08.9]} 42. Ne7+ {[%clk 0:00:25.7]} 42... Kf7
{[%clk 0:00:08.5]} 43. Qe3 {[%clk 0:00:19.2]} 43... Bxe3 {[%clk 0:00:07.7]} 0-1